Workbook

Sheet NSU
B1: Ada Karlsson | E1: 24.6.2003 Vaasa
B2: SUPERPESIS | E2: Runkosarja | I2: Kärkilyönnit (KL), pesänvälit | Q2: Runkosarja | U2: Ylempi loppusarja | Z2: Alempi loppusarja | AG2: Arvo-ottelut ja mitalit
B3: Vuosi | C3: Sija | D3: Seura | E3: OTT | F3: KUN | G3: LÖI | H3: TOI | I3: KL | J3: 0 > 1 | K3: 1 > 2 | L3: 2 > 3 | M3: 3 > k | N3: KL-% | P3: LÖI | Q3: TOI | R3: L+T | S3: KL | U3: OTT | V3: KUN | W3: LÖI | X3: TOI | Y3: KL | Z3: OTT | AA3: KUN | AB3: LÖI | AC3: TOI | AD3: KL | AE3: IL | AF3: LL | AG3: Halli | AH3: K | AI3: H | AJ3: P
B4: 2018 | C4: 12. | D4: Mailattaret | F4: ykköspesis
B5: 2019 | C5: 6. | D5: Mailattaret | F5: ykköspesis
B6: 2020 | C6: 1. | D6: Mailattaret | F6: ykköspesis
B7: 2021 | C7: 1. | D7: Mailattaret | F7: ykköspesis
B8: 2022 | C8: 7. | D8: Mailattaret | E8: 23 | F8: 2 | G8: 13 | H8: 6 | I8: 44 | J8: 1 | K8: 8 | L8: 20 | M8: 15 | N8: 44.9 % | O8: 98 | U8: 3 | V8: 0 | W8: 1 | X8: 0 | Y8: 5
B9: 2023 | C9: 8. | D9: Mailattaret | E9: 24 | F9: 1 | G9: 41 | H9: 6 | I9: 62 | J9: 0 | K9: 3 | L9: 17 | M9: 42 | N9: 47.7 % | O9: 130 | U9: 3 | V9: 0 | W9: 5 | X9: 0 | Y9: 7
B10: 2024 | C10: 8. | D10: Mailattaret | E10: 24 | F10: 0 | G10: 48 | H10: 0 | I10: 65 | J10: 1 | K10: 2 | L10: 14 | M10: 48 | N10: 41.4 % | O10: 157 | P10: 5. | U10: 6 | V10: 0 | W10: 11 | X10: 0 | Y10: 16
B11: Yhteensä | E11: =SUM(E4:E10) -> 71 | F11: =SUM(F4:F10) -> 3 | G11: 102 | H11: 12 | I11: 171 | J11: 2 | K11: 13 | L11: 51 | M11: 105 | N11: =PRODUCT(I11/O11) -> 44.4 % | O11: =SUM(O4:O10) -> 385 | U11: =SUM(U4:U10) -> 12 | V11: 0 | W11: 17 | X11: 0 | Y11: 28 | Z11: 0 | AA11: 0 | AB11: 0 | AC11: 0 | AD11: 0 | AE11: 0 | AF11: 0 | AG11: 0 | AH11: 0 | AI11: 0 | AJ11: 0
B12: Pesispörssi | D12: =SUM(F11:H11)+((I11-F11-G11)/3)+(E11/3)+(AE11*25)+(AF11*25)+(AG11*10)+(AH11*25)+(AI11*20)+(AJ11*15) -> 162.7
B14: URA SUPERISSA | E14: OTT | F14: KUN | G14: LÖI | H14: TOI | I14: KL | K14: ka/L | L14: ka/T | M14: ka/KL | N14: K - % | P14: ENSIMMÄISET
B15: Runkosarja | E15: =PRODUCT(E11) -> 71 | F15: =PRODUCT(F11) -> 3 | G15: =PRODUCT(G11) -> 102 | H15: =PRODUCT(H11) -> 12 | I15: =PRODUCT(I11) -> 171 | K15: =PRODUCT((F15+G15)/E15) -> 1.48 | L15: =PRODUCT(H15/E15) -> 0.17 | M15: =PRODUCT(I15/E15) -> 2.41 | N15: =PRODUCT(N11) -> 44.4 % | O15: =PRODUCT(O11) -> 385 | P15: Ottelu | R15: 14.05. 2022 JoMa - Mailattaret 0-2 (0-1, 2-4) | AB15: 1. ottelu | AG15: 18 v 10 kk 20 pv
B16: Ylempi loppusarja | E16: =PRODUCT(U11) -> 12 | F16: =PRODUCT(V11) -> 0 | G16: 17 | H16: 0 | I16: 28 | K16: =PRODUCT((F16+G16)/E16) -> 1.42 | L16: =PRODUCT(H16/E16) -> 0.00 | M16: =PRODUCT(I16/E16) -> 2.33 | N16: =PRODUCT(I16/O16) -> 49.1 % | O16: 57 | P16: Lyöty | R16: 14.05. 2022 JoMa - Mailattaret 0-2 (0-1, 2-4) | AB16: 1. ottelu | AG16: 18 v 10 kk 20 pv
B17: Alempi loppusarja | P17: Tuotu | R17: 14.05. 2022 JoMa - Mailattaret 0-2 (0-1, 2-4) | AB17: 1. ottelu | AG17: 18 v 10 kk 20 pv
B18: KAIKKI | E18: =SUM(E15:E17) -> 83 | F18: =SUM(F15:F17) -> 3 | G18: =SUM(G15:G17) -> 119 | H18: =SUM(H15:H17) -> 12 | I18: =SUM(I15:I17) -> 199 | K18: =PRODUCT((F18+G18)/E18) -> 1.47 | L18: =PRODUCT(H18/E18) -> 0.14 | M18: =PRODUCT(I18/E18) -> 2.40 | N18: =PRODUCT(I18/O18) -> 45.0 % | O18: =SUM(O15:O17) -> 442 | P18: Kunnari | R18: 14.05. 2022 JoMa - Mailattaret 0-2 (0-1, 2-4) | AB18: 1. ottelu | AG18: 18 v 10 kk 20 pv
B20: Seurat | D20: Vaasan Mailan Juniorit (1993), kasvattajaseura
D21: Mailattaret (2015)

Sheet NYP
B1: Ada Karlsson | E1: 24.6.2003 Vaasa
B2: YKKÖSPESIS | E2: Runkosarja | L2: Runkosarja TOP-10 | Q2: Jatkosarjat | X2: SUOMENSARJA | AA2: Runkosarja | AH2: Runkosarja TOP-10 | AM2: Jatkosarjat
B3: Vuosi | C3: Sija | D3: Seura | E3: OTT | F3: KUN | G3: LÖI | H3: TOI | I3: KL | J3: KL-% | L3: LÖI | M3: TOI | N3: L+T | O3: KL | Q3: OTT | R3: KUN | S3: LÖI | T3: TOI | U3: KL | V3: KL-% | X3: Vuosi | Y3: Sija | Z3: Seura | AA3: OTT | AB3: KUN | AC3: LÖI | AD3: TOI | AE3: KL | AF3: KL-% | AH3: LÖI | AI3: TOI | AJ3: L+T | AK3: KL | AM3: OTT | AN3: KUN | AO3: LÖI | AP3: TOI | AQ3: KL | AR3: KL-%
B4: 2018 | C4: 12. | D4: Mailattaret | E4: 17 | F4: 2 | G4: 13 | H4: 8 | I4: 65 | J4: 58.6 % | K4: 111
B5: 2019 | C5: 6. | D5: Mailattaret | E5: 20 | F5: 1 | G5: 16 | H5: 9 | I5: 59 | J5: 52.7 % | K5: 112
B6: 2020 | C6: 1. | D6: Mailattaret | E6: 14 | F6: 6 | G6: 36 | H6: 19 | I6: 86 | J6: 81.1 % | K6: 106 | L6: 2. | N6: 1. | O6: 4. | Q6: 4 | R6: 0 | S6: 3 | T6: 0 | U6: 12 | V6: 41.4 % | W6: 29
B7: 2021 | C7: 1. | D7: Mailattaret | E7: 10 | F7: 2 | G7: 12 | H7: 6 | I7: 32 | J7: 60.4 % | K7: 53 | Q7: 5 | R7: 0 | S7: 6 | T7: 2 | U7: 13 | V7: 56.5 % | W7: 23
B10: YHTEENSÄ | E10: =SUM(E4:E9) -> 61 | F10: =SUM(F4:F9) -> 11 | G10: =SUM(G4:G9) -> 77 | H10: =SUM(H4:H9) -> 42 | I10: =SUM(I4:I9) -> 242 | J10: =PRODUCT(I10/K10) -> 63.4 % | K10: =SUM(K4:K9) -> 381.9976814 | Q10: =SUM(Q4:Q9) -> 9 | R10: =SUM(R4:R9) -> 0 | S10: =SUM(S4:S9) -> 9 | T10: =SUM(T4:T9) -> 2 | U10: =SUM(U4:U9) -> 25 | V10: =PRODUCT(U10/W10) -> 48.1 % | W10: =SUM(W4:W9) -> 52 | X10: YHTEENSÄ | AA10: =SUM(AA4:AA9) -> 0 | AB10: =SUM(AB4:AB9) -> 0 | AC10: =SUM(AC4:AC9) -> 0 | AD10: =SUM(AD4:AD9) -> 0 | AE10: =SUM(AE4:AE9) -> 0 | AF10: 0.0 % | AG10: =SUM(AG4:AG9) -> 0 | AM10: =SUM(AM4:AM9) -> 0 | AN10: =SUM(AN4:AN9) -> 0 | AO10: =SUM(AO4:AO9) -> 0 | AP10: =SUM(AP4:AP9) -> 0 | AQ10: =SUM(AQ4:AQ9) -> 0 | AR10: 0.0 % | AS10: =SUM(AS4:AS9) -> 0
B12: KAIKKI OTTELUT | E12: OTT | F12: KUN | G12: LÖI | H12: TOI | I12: KL | J12: KL-% | L12: ka/L | M12: ka/T | N12: ka/l+t | O12: ka/kl | R12: Seurat | T12: Vaasan Mailan Juniorit (1993), kasvattajaseura
B13: SUPERPESIS | E13: 0 | F13: 0 | G13: 0 | H13: 0 | I13: 0 | J13: 0.0 % | K13: =PRODUCT(I13/J13) ->  | L13: =PRODUCT((F13+G13)/E13) ->  | M13: =PRODUCT(H13/E13) ->  | N13: =PRODUCT((F13+G13+H13)/E13) ->  | O13: =PRODUCT(I13/E13) ->  | T13: Mailattaret (2015)
B14: YKKÖSPESIS | E14: =PRODUCT(E10+Q10) -> 70 | F14: =PRODUCT(F10+R10) -> 11 | G14: =PRODUCT(G10+S10) -> 86 | H14: =PRODUCT(H10+T10) -> 44 | I14: =PRODUCT(I10+U10) -> 267 | J14: =PRODUCT(I14/K14) -> 61.5 % | K14: =PRODUCT(K10+W10) -> 433.9976814 | L14: =PRODUCT((F14+G14)/E14) -> 1.39 | M14: =PRODUCT(H14/E14) -> 0.63 | N14: =PRODUCT((F14+G14+H14)/E14) -> 2.01 | O14: =PRODUCT(I14/E14) -> 3.81
B15: SUOMENSARJA | E15: =PRODUCT(AA10+AM10) -> 0 | F15: =PRODUCT(AB10+AN10) -> 0 | G15: =PRODUCT(AC10+AO10) -> 0 | H15: =PRODUCT(AD10+AP10) -> 0 | I15: =PRODUCT(AE10+AQ10) -> 0 | J15: 0.0 % | K15: =PRODUCT(AG10+AS10) -> 0 | L15: 0.00 | M15: 0.00 | N15: 0.00 | O15: 0.00
B16: YHTEENSÄ | E16: =SUM(E13:E15) -> 70 | F16: =SUM(F13:F15) -> 11 | G16: 86 | H16: 44 | I16: 267 | J16: =PRODUCT(I16/K16) ->  | K16: =SUM(K13:K15) ->  | L16: =PRODUCT((F16+G16)/E16) -> 1.39 | M16: =PRODUCT(H16/E16) -> 0.63 | N16: =PRODUCT((F16+G16+H16)/E16) -> 2.01 | O16: =PRODUCT(I16/E16) -> 3.81

Sheet Arvo-ottelut
B1: ITÄ - LÄNSI - KORTTI
B2: Ada Karlsson | C2: 24.6.2003 Vaasa
B3: B-TYTÖT | C3: Itä - Länsi, tulos | D3: Joukkue | E3: Seura | G3: V | H3: T | I3: H | J3: Up. | K3: Lj. | L3: Palk. | M3: O | N3: K | O3: L | P3: T | Q3: KL | R3: 1 | S3: 2 | T3: 3 | U3: k | V3: KL-% | W3: Pelinjohtaja | X3: Yleisöä
B4: 10.07. 2022 Tampere | C4: 2-1 (0-3, 8-7, 1-1, 2-1) | D4: Länsi | E4: YPJ | I4: 1 | J4: 3p | K4: 5 | M4: 1 | O4: 3 | Q4: 4/10 | S4: 0/1 | T4: 1/2 | U4: 3/7 | V4: 40.0 % | W4: Vesa Ranta | X4: 856
